bitfinex/quotes_ETHUSD_20220310
["timestamp","ask_amount","ask_price","bid_price","bid_amount"]
[1646921497193,1.0,2580.2,2580.1,0.96962]
[1646921498799,1.0,2580.2,2580.1,0.91962]
[1646921499441,1.0,2580.2,2580.1,0.93388207]
[1646921501943,1.0,2580.2,2580.1,0.01426207]
[1646921504094,1.70559915,2580.2,2580.1,0.02780704]
[1646921504293,1.70559915,2580.2,2580.1,0.04170286]
[1646921504494,1.0,2580.2,2580.1,0.04170286]
[1646921506195,1.70721433,2580.2,2580.1,0.04170286]
[1646921506647,3.31358141,2580.2,2580.1,0.04170286]
[1646921506848,2.60636708,2580.2,2580.1,0.04170286]
[1646921507853,3.54556583,2580.2,2580.1,0.04170286]
[1646921508257,3.54556583,2580.2,2579.4,0.00807166]
[1646921508258,11.91667143,2580.0,2579.3,0.25]
[1646921508453,11.91667143,2580.0,2579.0,2.90944]
[1646921508454,0.70815365,2579.6,2579.0,2.90944]
[1646921508655,0.70815365,2579.6,2579.4,0.00807166]
[1646921508656,3.24833405,2579.5,2579.4,0.00807166]
[1646921508852,4.44213405,2579.5,2579.4,0.00807166]
[1646921509054,4.7339804,2579.5,2579.4,0.00807166]
[1646921509254,4.5401804,2579.5,2579.4,0.00807166]
[1646921509453,4.5401804,2579.5,2579.0,0.97008]
[1646921509454,5.48438527,2579.5,2579.0,0.97008]
[1646921509652,0.70890019,2579.2,2578.9,0.9701]
[1646921509854,0.70890019,2579.2,2578.9,0.97817298]
[1646921510054,2.31526727,2579.2,2578.9,0.97817298]
[1646921510495,3.28542727,2579.2,2578.9,0.97817298]
[1646921510695,0.94420487,2579.4,2578.9,0.9701]
[1646921510696,2.31526727,2579.1,2578.9,0.9701]
[1646921510899,1.60636708,2579.0,2578.9,0.9701]
[1646921511095,2.60636708,2579.0,2578.9,0.9701]
[1646921515148,2.60636708,2579.0,2578.8,0.2283356]
[1646921515349,1.60636708,2578.9,2578.8,0.00201838]
[1646921515551,2.60636708,2578.9,2578.7,3.88038]
[1646921515751,1.60636708,2578.8,2578.7,3.88038]
[1646921516350,2.60636708,2578.8,2578.7,3.88038]
[1646921518499,2.60636708,2578.8,2578.7,2.91025]
[1646921519303,13.43636708,2578.8,2578.2,1.0]
[1646921519497,2.65467922,2578.7,2578.6,0.00201849]
[1646921520298,2.65467922,2578.7,2578.2,1.00807517]
[1646921520299,2.60636708,2578.7,2578.3,3.03749156]
[1646921520499,1.60636708,2578.6,2578.3,1.94036]
[1646921520698,1.60636708,2578.6,2578.4,0.97023]
[1646921520902,2.60636708,2578.5,2578.4,0.97023]
[1646921521110,2.60636708,2578.5,2578.3,1.94036]
[1646921521299,1.0,2578.5,2578.3,1.94036]
[1646921521556,1.0,2578.5,2578.3,2.91054]
[1646921522151,0.58941244,2578.8,2578.3,2.91054]
[1646921522350,1.0,2578.4,2578.3,1.94036]
[1646921523459,0.58941244,2578.8,2578.4,0.384]
[1646921523661,0.58941244,2578.8,2578.5,0.845]
[1646921523856,0.58941244,2578.8,2578.6,2.29700214]
[1646921524058,0.58941244,2578.8,2578.6,2.75800214]
[1646921525308,1.0,2579.1,2578.8,0.384]
[1646921525501,1.0,2579.5,2579.4,0.96985]
[1646921525699,1.0,2579.5,2578.8,0.384]
[1646921525700,1.0,2579.5,2578.8,0.845]
[1646921525901,1.60666398,2579.4,2579.3,1.38627963]
[1646921526098,0.28047143,2580.0,2579.8,0.9697]
[1646921526099,0.08667143,2580.0,2579.8,0.9697]
[1646921526406,1.6064675,2579.9,2579.8,0.9697]
[1646921527210,2.6064675,2579.9,2579.8,0.9697]
[1646921528204,2.6064675,2579.9,2579.8,2.08258663]
[1646921528707,1.6064675,2579.9,2579.8,2.08258663]
[1646921530250,0.08667143,2580.0,2579.8,2.08258663]
[1646921530851,3.35448684,2581.0,2580.2,19.5]
[1646921531153,11.6075073,2581.2,2580.3,0.845]
[1646921531154,1.60596687,2580.9,2580.3,0.845]
[1646921531462,1.09293277,2581.3,2580.8,0.96928]
[1646921531649,1.60573734,2581.2,2580.5,4.72145]
[1646921531849,1.60573734,2581.2,2580.8,2.3220742]
[1646921532050,0.70523277,2581.6,2581.1,1.90789435]
[1646921532252,0.70523277,2581.6,2581.3,0.969]
[1646921532451,0.05023895,2582.3,2581.3,2.78299]
[1646921532452,1.60557138,2581.5,2581.3,2.78299]
[1646921532650,0.01403583,2581.5,2581.4,1.93749]
[1646921532898,0.01403583,2581.5,2581.4,2.32149]
[1646921533105,0.01403583,2581.5,2581.4,3.2903621]
[1646921533298,1.61944945,2581.5,2581.4,3.2903621]
[1646921533501,1.0,2582.0,2581.5,43.384]
[1646921533703,1.0,2582.0,2581.7,0.384]
[1646921533901,1.0,2582.0,2581.9,0.384]
[1646921534208,1.01403541,2582.0,2581.9,0.845]
[1646921534901,1.01403541,2582.0,2581.9,1.81359]
[1646921534902,1.0,2582.0,2581.9,1.81359]
[1646921535102,1.0,2582.0,2581.9,2.95884205]
[1646921535302,0.3877,2582.6,2582.1,0.384]
[1646921535503,0.70523277,2583.0,2582.3,4.8419916]
[1646921535703,0.70523277,2583.2,2582.8,0.96833]
[1646921535904,0.0755,2583.3,2582.6,0.384]
[1646921535905,0.70523277,2583.3,2582.6,0.384]
[1646921536106,0.70523277,2583.4,2583.0,0.96827]
[1646921536303,0.70523277,2583.4,2583.0,0.9618631]
[1646921536542,0.70523277,2583.5,2583.0,0.9618631]
[1646921536748,0.70523277,2583.5,2582.7,2.39745]
[1646921536947,0.70523277,2583.5,2582.5,0.461]
[1646921537143,0.70523277,2583.5,2582.2,6.6176]
[1646921537144,0.0512148,2583.4,2582.9,0.9684]
[1646921537343,0.70523277,2583.4,2582.9,0.9684]
[1646921537543,0.00290917,2583.2,2582.9,0.9684]
[1646921537742,0.00290917,2583.2,2582.9,1.93673]
[1646921537946,0.00290917,2583.2,2582.7,1.46638915]
[1646921538146,0.00290917,2583.2,2582.7,2.43474375]
[1646921538349,1.0,2583.5,2582.9,0.96825]
[1646921538548,0.05030246,2583.8,2582.9,0.96825]
[1646921538747,0.00290917,2583.1,2582.9,0.96825]
[1646921539352,0.00290917,2583.1,2583.0,0.96825]
[1646921539548,1.0,2583.3,2583.0,0.96825]
[1646921539751,2.00193926,2582.9,2582.7,1.936647]
[1646921539950,2.00193926,2582.9,2582.5,1.96981017]
[1646921539951,1.0,2582.8,2582.5,1.96981017]
[1646921540795,0.98352076,2582.8,2582.5,1.96981017]
[1646921540992,0.98717961,2582.8,2582.5,1.96981017]
[1646921541192,0.00365885,2582.8,2582.5,1.96981017]
[1646921541398,0.00365885,2582.8,2582.5,3.32222017]
[1646921541600,0.00365885,2582.8,2582.6,0.461]
[1646921541795,0.00365885,2582.8,2582.7,1.58002844]
[1646921542001,2.00193926,2582.9,2582.7,2.04102844]
[1646921542197,0.01463319,2583.2,2582.8,0.384]
[1646921542500,0.01463319,2583.2,2583.0,0.384]
[1646921542697,0.01463319,2583.2,2583.1,0.845]
[1646921543205,0.1935,2584.4,2583.4,52.5]
[1646921543504,1.19798228,2584.8,2584.0,0.96786]
[1646921543505,0.9832,2584.3,2584.0,0.96786]
[1646921543899,0.9832,2584.3,2584.1,0.0803647]
[1646921544143,0.9832,2584.3,2584.1,1.1339773]
[1646921544344,3.8085908,2585.2,2584.1,1.0536126]
[1646921544345,0.1933,2585.2,2584.1,1.0536126]
[1646921544550,1.41649169,2585.3,2584.5,0.96761]
[1646921544850,0.00210041,2585.2,2584.5,0.96761]
[1646921545046,0.57182095,2585.4,2584.6,0.461]
[1646921545247,0.57182095,2585.4,2584.7,1.20745919]
[1646921545446,0.57182095,2585.4,2584.5,0.07633552]
[1646921545947,0.57182095,2585.4,2584.4,0.461]
[1646921545948,1.0,2584.6,2584.4,0.461]
[1646921546749,1.0,2584.6,2583.6,0.533013]
[1646921546948,1.0,2584.6,2583.3,11.6330969]
[1646921547154,3.66877503,2584.5,2583.3,0.711]
[1646921547351,3.66877503,2584.5,2583.3,0.25]
[1646921547352,0.1935,2584.4,2583.3,0.25]
[1646921547552,0.99315817,2583.7,2583.0,0.08780699]
[1646921547806,0.1935,2584.4,2583.0,0.08780699]
[1646921547807,0.96838,2584.1,2583.0,0.08780699]
[1646921548003,1.0,2584.1,2583.0,0.461]
[1646921548198,1.0,2584.1,2583.1,0.06992708]
[1646921548401,1.0,2584.1,2582.7,1.94991522]
[1646921548402,0.00367552,2583.5,2583.2,0.461]
[1646921548605,0.00367552,2583.5,2582.7,0.98415048]
[1646921548606,0.00367552,2583.5,2582.9,0.461]
[1646921548801,0.00367552,2583.5,2582.7,0.01469992]
[1646921549202,0.00367552,2583.5,2582.5,0.32444783]
[1646921549203,1.98835888,2583.7,2582.5,0.25]
[1646921549404,3.6935,2583.6,2582.3,0.00837753]
[1646921549604,1.0,2582.6,2582.0,6.3323675]
[1646921549808,1.0,2582.6,2581.9,0.25]
[1646921549809,0.04683429,2582.5,2581.5,3.94456384]
[1646921550004,0.04683429,2582.5,2581.5,0.07103614]
[1646921550203,0.04683429,2582.5,2581.2,0.25]
[1646921550403,0.04683429,2582.5,2581.3,0.0763581]
[1646921550606,0.04683429,2582.5,2581.4,0.9689361]
[1646921550807,0.04683429,2582.5,2581.9,0.00260255]
[1646921551204,1.0,2582.2,2581.9,0.00260255]
[1646921551653,0.050283,2582.1,2581.5,1.9375987]
[1646921552650,1.0,2582.0,2581.5,1.9375987]
[1646921553054,0.050283,2582.1,2581.7,0.00202593]
[1646921553255,0.04757607,2582.4,2581.7,0.00202593]
[1646921553454,0.0481393,2582.6,2581.7,0.00202593]
[1646921553656,1.0,2582.3,2581.7,0.00202593]
[1646921553855,0.05462332,2582.2,2582.0,0.0169771]
[1646921554056,1.0,2582.3,2582.0,0.0169771]
[1646921554257,0.04185466,2582.5,2582.0,0.01900276]
[1646921554456,1.0,2583.1,2582.0,0.01900276]
[1646921554655,0.05066569,2583.0,2582.0,0.01900276]
[1646921554857,0.35066569,2583.0,2582.0,0.01900276]
[1646921555061,1.03630186,2582.9,2582.0,0.01900276]
[1646921555305,0.384,2582.8,2582.0,0.0169771]
[1646921555503,1.0,2582.6,2582.4,0.00214863]
[1646921555699,0.00219608,2582.3,2581.6,0.01768265]
[1646921555900,0.05394729,2582.3,2581.6,0.01768265]
[1646921556201,1.97118608,2582.3,2581.6,0.01768265]
[1646921556400,0.05455789,2582.2,2581.6,0.01768265]
[1646921556802,0.00219608,2582.3,2581.6,0.01768265]
[1646921557203,0.04645909,2582.3,2581.6,0.01768265]
[1646921557400,0.23995909,2582.3,2581.6,0.01768265]
[1646921557604,1.0,2581.9,2581.6,0.01768265]
[1646921558204,0.04213566,2581.8,2581.6,0.01768265]
[1646921558403,0.04409398,2581.7,2581.6,0.01768265]
[1646921559258,0.04409398,2581.7,2581.6,0.00259977]
[1646921560063,0.04409398,2581.7,2581.3,0.96888]
[1646921560267,0.04409398,2581.7,2581.5,0.97150702]
[1646921560465,0.05021348,2581.9,2581.5,0.97150702]
[1646921561268,0.05021348,2581.9,2581.5,0.9689072]
[1646921561470,0.1935,2582.2,2581.6,0.00259977]
[1646921561471,0.0425029,2582.1,2581.6,0.00259977]
[1646921562272,0.04508829,2582.2,2581.6,3.96359977]
[1646921562471,0.56997249,2582.3,2581.7,0.08490157]
[1646921562667,0.56997249,2582.3,2582.0,0.96864]
[1646921562927,0.56997249,2582.3,2581.8,0.08991616]
[1646921563324,0.05005899,2582.2,2581.7,2.40092962]
[1646921563722,0.05005899,2582.2,2581.7,2.39833]
[1646921564023,0.56997249,2582.3,2581.9,0.00230698]
[1646921564922,1.04721163,2582.2,2581.7,1.93733]
[1646921565125,0.04199478,2582.1,2582.0,0.00230694]
[1646921565526,0.23549478,2582.1,2582.0,0.00230694]
[1646921565721,1.23549478,2582.1,2582.0,0.00230694]
[1646921565924,1.23549478,2582.1,2581.3,0.9689992]
[1646921566123,0.61953241,2582.0,2581.3,1.94016205]
[1646921566323,0.04968479,2581.9,2581.3,2.90911205]
[1646921566546,0.43368479,2581.9,2581.3,2.90911205]
[1646921566750,0.04270213,2581.7,2581.3,2.90911205]
[1646921567549,0.04270213,2581.7,2581.4,0.00219616]
[1646921568357,1.0,2581.6,2581.4,0.00219616]
[1646921568555,1.0,2581.6,2581.3,1.9379492]
[1646921568756,1.0,2581.6,2581.4,0.00219612]
[1646921569156,0.04224794,2582.1,2581.4,0.00219612]
[1646921569359,0.04224794,2582.1,2581.9,0.96885]
[1646921569555,0.95397249,2582.3,2581.9,0.96885]
[1646921569756,1.60566919,2582.2,2581.9,0.96885]
[1646921570601,1.60566919,2582.2,2581.6,1.93988595]
[1646921570805,1.0,2582.1,2581.6,1.93769]
[1646921571003,1.60566919,2582.0,2581.7,0.96893]
[1646921571206,2.98966919,2581.9,2580.9,2.1399872]
[1646921571405,2.98966919,2581.9,2580.9,0.2019469]
[1646921571406,1.60566919,2581.8,2580.9,0.2019469]
[1646921572004,1.0,2581.3,2580.9,0.1935]
[1646921572204,1.0,2581.3,2581.1,1.9382]
[1646921572404,1.0,2581.3,2581.2,0.00211145]
[1646921572608,0.384,2581.9,2581.2,0.00211145]
[1646921572609,0.384,2581.9,2581.3,0.25]
[1646921572803,2.18360783,2581.8,2581.3,0.25]
[1646921573004,1.0,2581.4,2581.3,0.25]
[1646921573408,2.60590783,2581.4,2581.3,0.25]
[1646921574651,0.96946,2581.3,2581.2,0.0021356]
[1646921574851,2.57536783,2581.3,2581.2,0.0021356]
[1646921575252,14.40536783,2581.3,2581.2,0.0021356]
[1646921575452,56.0,2581.2,2581.0,0.25]
[1646921575656,1.60590783,2581.1,2581.0,0.25]
[1646921575853,1.60590783,2581.2,2581.0,0.25]
[1646921576057,1.60590783,2581.2,2581.1,0.00213569]
[1646921576254,1.60590783,2581.3,2581.1,0.00213569]
[1646921576454,1.0,2581.2,2581.1,0.00213569]
[1646921576653,1.60590783,2581.2,2581.1,0.00213569]
[1646921576854,1.60590783,2581.2,2581.0,0.25]
[1646921577055,1.60590783,2581.1,2581.0,0.25]
[1646921577257,1.60590783,2581.3,2581.0,0.25]
[1646921577455,1.0,2581.1,2581.0,0.25]
[1646921577658,2.60590783,2581.1,2581.0,0.25]
[1646921579504,1.0,2581.1,2581.0,0.25]
[1646921579705,0.59393281,2581.4,2581.0,0.25]
[1646921579706,0.05383447,2581.3,2581.0,0.25]
[1646921579904,1.60604593,2581.2,2581.0,0.25]
[1646921580204,0.04835477,2581.1,2581.0,0.25]
[1646921580504,0.0542448,2581.3,2581.0,0.25]
[1646921580704,1.0,2581.2,2581.0,0.25]
[1646921580908,2.65323717,2581.1,2581.0,0.25]
[1646921581754,1.04711576,2581.1,2581.0,0.25]
[1646921582359,1.56328281,2581.4,2581.0,0.25]
[1646921582561,1.60609112,2581.3,2581.0,0.25]
[1646921582762,0.05465854,2581.2,2581.0,0.25]
[1646921583061,1.0,2581.1,2581.0,0.25]
[1646921584063,0.59393281,2581.4,2581.0,0.25]
[1646921584467,0.44393281,2581.4,2581.0,0.25]
[1646921584666,1.65723427,2581.3,2581.0,0.25]
[1646921584866,0.44393281,2581.4,2581.0,0.25]
[1646921584867,1.0,2581.1,2581.0,0.25]
[1646921585066,2.60620383,2581.1,2581.0,0.25]
[1646921585301,2.79990383,2581.1,2581.0,0.25]
[1646921585903,1.60620383,2581.1,2581.0,0.25]
[1646921586303,0.384,2581.3,2581.0,0.25]
[1646921586304,1.60620383,2581.2,2581.0,0.25]
[1646921587103,2.57563383,2581.2,2581.0,0.25]
[1646921587304,12.83,2581.0,2580.8,0.25]
[1646921587504,12.83,2581.0,2580.7,0.00257398]
[1646921587505,12.96579858,2581.0,2580.7,0.00257398]
[1646921587704,0.384,2580.9,2579.8,1.04042875]
[1646921587904,0.384,2580.7,2579.8,1.04042875]
[1646921588107,0.384,2580.7,2580.1,0.96954]
[1646921588705,1.0,2580.6,2580.1,0.96954]
[1646921589158,1.0,2580.6,2580.3,0.00241348]
[1646921590152,1.0,2580.6,2580.0,0.96955]
[1646921590354,1.0,2580.6,2580.3,0.00241343]
[1646921591359,1.0,2580.6,2579.9,1.93891]
[1646921591553,1.0,2580.6,2580.3,0.00203734]
[1646921592455,1.0,2580.6,2579.9,1.05929048]
[1646921592456,1.60642639,2580.5,2579.9,1.05929048]
[1646921592658,1.60642639,2580.5,2580.3,0.00203734]
[1646921593506,1.0,2580.6,2580.3,0.00203734]
[1646921593708,1.6064232,2580.5,2579.9,1.05929048]
[1646921593907,1.6064232,2580.5,2580.3,0.00203738]
[1646921594508,0.57080571,2580.7,2580.3,0.00203738]
[1646921595106,0.57080571,2580.7,2580.3,1.20430899]
[1646921595707,0.57080571,2580.7,2580.3,2.0110186]
[1646921595907,1.60625605,2580.6,2580.3,0.29767882]
[1646921596207,1.60625605,2580.6,2579.9,0.06962167]
[1646921596407,1.60625605,2580.6,2580.4,0.00211589]
[1646921597252,1.60625605,2580.6,2580.0,1.93891]
[1646921597654,1.60625605,2580.6,2579.7,0.08945107]
[1646921597856,1.60625605,2580.6,2579.9,1.93885]
[1646921598356,1.60625605,2580.6,2580.4,1.93876]
[1646921598958,1.563406,2580.6,2580.4,1.93876]
[1646921599161,0.57080571,2580.7,2580.4,1.93876]
[1646921600061,0.57080571,2580.7,2580.4,1.94085816]
[1646921600905,0.57080571,2580.7,2580.4,1.93876]
[1646921601103,0.57080571,2580.7,2580.4,1.94085816]
[1646921601907,0.57080571,2580.7,2580.4,0.00209816]
[1646921602106,0.57080571,2580.7,2580.3,1.93886]
[1646921602304,0.57080571,2580.7,2580.0,2.01283014]
[1646921602305,0.0434825,2580.6,2580.0,2.01283014]
[1646921602503,0.0434825,2580.6,2580.4,0.00209685]
[1646921603407,0.57080571,2580.7,2580.3,1.93884]
[1646921603607,0.57080571,2580.7,2580.4,0.00209689]
[1646921604052,0.57080571,2580.7,2580.4,0.97153689]
[1646921604554,0.57080571,2580.7,2580.3,1.93884]
[1646921604752,0.57080571,2580.7,2580.4,0.00209685]
[1646921605454,0.57080571,2580.7,2580.4,0.97154685]
[1646921605651,0.57080571,2580.7,2580.4,0.96945]
[1646921606051,0.57080571,2580.7,2580.4,0.97154715]
[1646921606955,0.57080571,2580.7,2580.4,0.96945]
[1646921607160,0.57080571,2580.7,2580.4,0.00209715]
[1646921608106,0.57080571,2580.7,2580.3,1.93884]
[1646921608502,0.57080571,2580.7,2580.4,0.00209715]
[1646921608905,0.57080571,2580.7,2580.4,0.97158715]
[1646921609407,0.57080571,2580.7,2580.4,0.96949]
[1646921609608,0.57080571,2580.7,2580.4,0.97158708]
[1646921610611,0.57080571,2580.7,2580.4,0.96949]
[1646921610811,0.57080571,2580.7,2580.4,0.97158708]
[1646921611012,0.57080571,2580.7,2580.4,0.00209708]
[1646921611651,1.0,2580.6,2580.4,0.00209708]
[1646921611853,1.0,2580.6,2580.1,0.96959]
[1646921612053,1.0,2580.6,2580.0,2.01293014]
[1646921613070,1.0,2580.6,2580.3,0.96955]
[1646921613662,1.0,2580.6,2580.4,1.93884]
[1646921613861,0.57080571,2580.7,2580.4,1.93884]
[1646921614263,0.57080571,2580.7,2580.5,0.0855099]
[1646921615815,0.57080571,2580.7,2580.5,0.08760696]
[1646921616615,0.57080571,2580.7,2580.5,0.0855099]
[1646921616814,0.57080571,2580.7,2580.6,0.461]
[1646921617013,0.57080571,2580.7,2580.5,0.08760171]
[1646921617215,0.57080571,2580.7,2580.6,0.461]
[1646921617414,0.57080571,2580.7,2580.4,1.93884]
[1646921617415,0.70523277,2581.1,2580.4,0.84163658]
[1646921617618,0.70523277,2581.1,2580.8,0.96923]
[1646921617815,0.77602404,2581.2,2580.8,0.96923]
[1646921618019,0.77602404,2581.2,2580.7,1.93845]
[1646921618420,0.07079127,2581.2,2580.7,1.93845]
[1646921619156,1.60594136,2581.1,2580.9,0.96925]
[1646921619358,1.60594136,2581.0,2580.9,0.96925]
[1646921619559,1.60594136,2581.1,2580.9,0.96925]
[1646921620760,0.70523277,2581.2,2580.9,0.96925]
[1646921620761,1.60594136,2581.0,2580.9,0.96925]
[1646921621058,1.60594136,2581.0,2580.7,1.93845]
[1646921621258,0.06220512,2580.9,2580.7,1.93845]
[1646921621460,1.60594136,2580.8,2580.7,1.93845]
[1646921622159,0.70523277,2581.1,2580.7,1.93845]
[1646921623006,2.31117413,2581.1,2580.7,1.93845]
[1646921623406,2.35976567,2581.1,2580.7,1.93845]
[1646921623606,1.66396797,2581.0,2580.8,0.96928]
[1646921623807,1.60594136,2580.9,2580.7,1.93845]
[1646921624309,1.60594136,2580.9,2580.8,3.5]
[1646921624607,1.60594136,2580.9,2580.7,1.93845]
[1646921624810,1.60594136,2580.8,2580.7,2.78345]
[1646921625007,1.60594136,2581.0,2580.7,2.78345]
[1646921625209,1.60594136,2581.0,2580.8,2.16099465]
[1646921626010,1.60594136,2581.0,2580.9,0.96905]
[1646921626654,1.60594136,2581.0,2580.9,1.93812]
[1646921628257,1.60594136,2581.0,2580.9,2.78312]
[1646921628658,0.06567661,2581.5,2580.9,2.78312]
[1646921628856,0.06567661,2581.5,2581.2,0.96260542]
[1646921628857,1.60575059,2581.4,2581.2,0.96260542]
[1646921632910,0.06567661,2581.5,2581.2,0.96260542]
[1646921633112,1.60579783,2581.4,2581.1,1.93799]
[1646921633512,1.6547501,2581.4,2581.1,1.93799]
[1646921633712,1.60579783,2581.3,2581.1,2.88348162]
[1646921634151,1.60579783,2581.3,2581.1,1.93799]
[1646921634653,1.60579783,2581.3,2581.1,2.90697]
[1646921635655,1.60579783,2581.3,2581.2,0.92958488]
[1646921636157,1.60579783,2581.3,2581.1,2.90697]
[1646921637457,1.60579783,2581.3,2581.1,1.19418952]
[1646921638516,0.04895227,2581.4,2581.1,1.19418952]
[1646921638714,0.04895227,2581.4,2581.2,0.96896]
[1646921638912,0.04895227,2581.4,2581.3,3.5]
[1646921639113,0.04895227,2581.4,2581.3,4.02761952]
[1646921639311,0.0035323,2581.7,2581.6,0.96868]
[1646921639510,0.59553695,2581.8,2581.6,1.42968]
[1646921639712,1.60546182,2581.7,2581.6,1.42968]
[1646921639915,1.60899429,2581.7,2581.6,2.35300104]
[1646921640114,1.60899429,2581.7,2581.6,1.42968]
[1646921640313,1.60899429,2581.7,2581.6,0.461]
[1646921640513,1.60899429,2581.7,2581.6,2.39835]
[1646921640713,1.60546182,2581.7,2581.6,2.39835]
[1646921641660,1.60546182,2581.7,2581.6,1.93735]
[1646921641860,1.90546182,2581.7,2581.5,1.93737]
[1646921642260,1.60546182,2581.6,2581.5,1.93737]
[1646921644566,1.6089945,2581.7,2581.5,1.93737]
[1646921644768,1.60546182,2581.6,2581.5,1.93737]
[1646921644965,1.6089945,2581.7,2581.5,1.93737]
[1646921645164,1.60546182,2581.6,2581.5,1.93737]
[1646921645404,1.60546182,2581.7,2581.5,1.93737]
[1646921645804,1.60899449,2581.7,2581.5,1.93737]
[1646921646605,1.60546182,2581.7,2581.5,1.93737]
[1646921647005,1.58329536,2581.7,2581.5,1.93737]
[1646921647205,0.00353267,2581.7,2581.5,1.93737]
[1646921647808,0.59553695,2581.8,2581.5,1.93737]
[1646921648009,0.59553695,2581.8,2581.6,1.93756]
[1646921648210,0.00353267,2581.7,2581.6,1.93756]
[1646921649157,0.59553695,2581.8,2581.6,1.97558467]
[1646921649356,0.59906961,2581.8,2581.6,1.97558467]
[1646921650157,0.00219608,2582.3,2581.6,1.97558467]
[1646921650158,0.00219608,2582.3,2581.7,66.5]
[1646921650360,0.00219608,2582.3,2582.0,0.96876]
[1646921650559,0.00219608,2582.3,2582.0,1.42976]
[1646921651057,0.00219608,2582.3,2582.0,1.62326]
[1646921651256,0.00219608,2582.3,2582.2,0.92576816]
[1646921651461,0.00219608,2582.3,2582.2,3.32371816]
[1646921651664,0.00510299,2582.3,2582.2,3.32371816]
[1646921652257,0.00290691,2582.3,2582.2,3.32371816]
[1646921652657,0.06880959,2583.0,2582.8,0.96856]
[1646921653309,1.89873277,2583.3,2582.8,0.96856]
[1646921653509,0.06293348,2583.1,2582.6,1.93712]
[1646921654112,0.06293348,2583.1,2582.9,0.96856]
[1646921654512,0.66622812,2583.0,2582.6,1.93712]
[1646921654713,0.34806187,2583.0,2582.6,1.93712]
[1646921654915,1.82520487,2583.0,2582.6,0.9972738]
[1646921655113,0.04506538,2582.7,2582.5,0.9688]
[1646921655512,0.23856538,2582.7,2582.5,0.9688]
[1646921656313,0.04506538,2582.7,2582.5,0.9688]
[1646921656561,0.04860207,2582.7,2582.5,0.9688]
[1646921656978,1.0,2582.6,2582.5,0.9688]
[1646921657565,1.0,2582.6,2582.3,2.16213823]
[1646921657868,1.6875,2582.6,2582.3,2.16213823]
[1646921658871,1.69103673,2582.6,2582.3,2.16213823]
[1646921659869,1.6875,2582.6,2582.3,2.16213823]
[1646921660071,1.69103718,2582.6,2582.3,2.16213823]
[1646921661014,1.6875,2582.6,2582.3,2.16213823]
[1646921661215,1.69103718,2582.6,2582.3,2.16213823]
[1646921661714,1.0,2582.5,2582.3,2.16213823]
[1646921662313,0.3,2582.6,2582.3,2.16213823]
[1646921662513,2.5497986,2582.8,2582.3,2.16213823]
[1646921662514,0.00353719,2582.5,2582.3,2.16213823]
[1646921663518,1.0,2583.0,2582.8,0.96853]
[1646921663719,0.01414625,2582.9,2582.8,0.96853]
[1646921664571,0.70470526,2583.2,2582.8,0.96853]
[1646921664770,0.70470526,2583.2,2582.9,0.96855]
[1646921664970,0.69741299,2583.2,2582.9,0.96855]
[1646921665869,2.54496663,2583.4,2582.9,0.96855]
[1646921666070,2.54496663,2583.4,2583.2,0.9685]
[1646921666470,1.54496663,2583.4,2583.2,0.9685]
[1646921667073,1.65244113,2583.3,2583.2,0.9685]
[1646921667271,1.60464088,2583.3,2583.2,0.9685]
[1646921668316,1.62864264,2583.7,2583.2,0.9685]
[1646921668317,1.60464088,2583.6,2583.2,0.9685]
[1646921668616,1.60464088,2583.6,2583.3,0.96817]
[1646921669217,0.05672202,2584.0,2583.6,1.93615]
[1646921669415,11.1546,2584.1,2583.7,0.96808]
[1646921669416,1.60440526,2583.9,2583.7,0.96808]
[1646921669620,1.66278867,2583.8,2583.6,1.93615]
[1646921669818,1.60440526,2583.7,2583.6,1.93615]
[1646921670917,0.97115591,2583.8,2583.6,1.93615]
[1646921671120,1.60440526,2583.7,2583.6,1.93615]
[1646921671320,0.04955362,2583.8,2583.6,1.93615]
[1646921671563,1.60440526,2583.7,2583.6,1.93615]
[1646921672264,0.00368588,2583.8,2583.6,2.90419]
[1646921672667,0.00368588,2583.8,2583.6,1.93615]
[1646921673068,1.65069466,2583.8,2583.6,1.93615]
[1646921673369,1.65424302,2583.7,2583.6,1.93615]
[1646921673970,1.60440526,2583.7,2583.6,1.93615]
[1646921674169,1.60440526,2583.7,2583.6,1.95350978]
[1646921674368,1.60440526,2583.8,2583.6,1.95350978]
[1646921674569,1.60809115,2583.8,2583.6,1.95350978]
[1646921675409,1.60440526,2583.8,2583.6,1.95350978]
[1646921675810,1.60809114,2583.8,2583.6,1.95350978]
[1646921676308,1.65449881,2583.8,2583.6,0.01735978]
[1646921676514,6.16181335,2583.7,2583.6,0.01735978]
[1646921676708,0.017414,2583.5,2582.9,1.0]
[1646921676908,0.9684944,2583.1,2582.9,1.0]
[1646921677108,0.3,2583.0,2582.9,1.0]
[1646921677510,0.00014722,2582.5,2582.3,0.1935]
[1646921677710,0.00014722,2582.5,2582.4,0.3875]
[1646921678313,0.00014722,2582.5,2582.3,1.16201]
[1646921678513,0.00014722,2582.5,2582.3,3.09887]
[1646921679563,0.00014722,2582.5,2582.4,0.96842]
[1646921679761,0.00014722,2582.5,2582.4,1.81692]
[1646921680363,0.1935,2583.7,2583.3,0.96818]
[1646921680564,0.1935,2583.7,2583.2,1.93635]
[1646921680565,1.60458155,2583.6,2583.2,1.93635]
[1646921681766,0.00267573,2583.5,2583.2,1.93635]
[1646921682164,0.00267573,2583.5,2583.4,0.96821]
[1646921682570,0.00267573,2583.5,2583.4,1.93632]
[1646921683217,0.00267573,2583.6,2583.5,1.12316749]
[1646921683417,0.00267573,2583.6,2583.4,1.93632]
[1646921683819,0.25358287,2584.2,2583.4,1.93632]
[1646921684019,0.06008287,2584.2,2583.7,0.96816]
[1646921684219,0.01388182,2584.0,2583.4,1.93632]
[1646921684619,0.01388182,2584.0,2583.5,1.11484498]
[1646921685020,0.06008287,2584.2,2583.5,1.11484498]
[1646921685021,0.06008287,2584.2,2583.8,0.9681]
[1646921685225,1.02819847,2584.2,2583.8,0.9681]
[1646921685420,0.00288796,2583.9,2583.8,0.9681]
[1646921685820,0.00288796,2583.9,2583.4,0.96821]
[1646921686221,0.05956579,2584.1,2583.4,0.96821]
[1646921686660,0.00288796,2583.8,2583.7,0.96816]